[Event "EYTCC Open U12 2018"]
[Site "Bad Blankeburg"]
[Date "2018.07.17"]
[Round "8"]
[White "Strybuk, Artsiom I"]
[Black "Caliskan, Seha"]
[Result "1-0"]
[ECO "C09"]
[WhiteElo "2079"]
[BlackElo "1874"]
[Annotator "NA"]
[PlyCount "52"]
[EventDate "2018.07.12"]
[EventType "swiss"]
[EventCountry "GER"]
[SourceTitle "playchess.com"]
[Source "ChessBase"]
[SourceQuality "1"]
[TimeControl "40/5400+30:1800+30"]

1. e4 {[%emt 0:00:00]} e6 {[%emt 0:02:45]} 2. d4 {[%emt 0:00:00]} d5 {[%emt 0:00:45]} 3. Nd2 {[%emt 0:00:00]} c5 {[%emt 0:00:08]} 4. exd5 {[%emt 0:00:30]} exd5 {[%emt 0:00:06]} 5. Ngf3 {[%emt 0:00:14]} Nc6 {[%emt 0:00:09]} 6. Bb5 {[%emt 0:00:51]} cxd4 {[%emt 0:00:08]} 7. O-O {[%emt 0:12:12]} Bd6 {[%emt 0:00:10]} 8. Re1+ {[%emt 0:02:26]} Nge7 {[%emt 0:00:08]} 9. Nxd4 {[%emt 0:07:31]} O-O {[%emt 0:00:51]} 10. N2f3 {[%emt 0:02:34]} Bg4 {[%emt 0:00:29] C09: Französische Verteidigung (Tarrasch-Variante)} 11. Be3 {[%emt 0:03:13]} (11. Be2 Qb6 12. Be3 Qxb2 13. Rb1 Qxa2 14. Ra1 Qb2 15. Rb1 Qc3 16. Nb5 Qf6 17. Nxd6 Qxd6 18. Rxb7 Nf5 19. Bc1 {1-0 (55) Druska,J (2430)-Szelag,M (2466) Poland 2017}) 11... Qc7 {[%emt 0:04:03]} 12. h3 {[%emt 0:06:32]} Bh5 {[%emt 0:01:43]} 13. c3 {[%emt 0:01:01]} a6 $146 {[%emt 0:04:42]} ({Vorgänger:} 13... Rad8 14. Qb3 Bg6 15. Qd1 a6 16. Bd3 Bxd3 17. Qxd3 h6 18. Rad1 Rfe8 {1-0 (30) Konecny,S (1672)-Berger,L (1579) St Veit 2016}) 14. Bd3 {[%emt 0:03:19]} Ne5 {[%emt 0:04:44]} 15. Bxh7+ {[%emt 0:01:47]} Kxh7 {[%emt 0:02:09]} 16. Ng5+ {[%emt 0:00:11]} Kg6 {[%emt 0:00:09]} 17. g4 {[%emt 0:00:46]} Bxg4 {[%emt 0:01:22]} 18. hxg4 {[%emt 0:00:21]} Qd7 {[%emt 0:01:57]} 19. Qc2+ $18 {[%emt 0:14:08]} f5 {[%emt 0:01:43]} 20. f3 {[%emt 0:04:46]} Nc4 {[%emt 0:08:03]} 21. Bc1 {[%emt 0:06:53]} Rf6 {[%emt 0:10:48]} 22. Re6 {[%emt 0:02:03]} Rxe6 {[%emt 0:08:44]} 23. gxf5+ {[%emt 0:01:32]} Kf6 {[%emt 0:00:34]} 24. fxe6 {[%emt 0:01:03]} Bh2+ {[%emt 0:04:23]} 25. Kh1 {[%emt 0:04:53]} Qe8 {[%emt 0:03:10]} 26. Nh7+ {[%emt 0:00:28]} Ke5 1-0

[Event "EYTCC Open U12 2018"]
[Site "Bad Blankeburg"]
[Date "2018.07.17"]
[Round "8"]
[White "Levin, Guy"]
[Black "Eilenberg, Jonas"]
[Result "1-0"]
[ECO "C03"]
[WhiteElo "2008"]
[BlackElo "1910"]
[Annotator "NA"]
[PlyCount "63"]
[EventDate "2018.07.12"]
[EventType "swiss"]
[EventCountry "GER"]
[SourceTitle "playchess.com"]
[Source "ChessBase"]
[SourceQuality "1"]
[TimeControl "40/5400+30:1800+30"]

1. e4 {[%emt 0:00:00]} e6 {[%emt 0:00:00]} 2. d4 {[%emt 0:00:00]} d5 {[%emt 0:00:00]} 3. Nd2 {[%emt 0:00:00]} Be7 {[%emt 0:00:13]} 4. Bd3 {[%emt 0:00:25]} Nf6 {[%emt 0:00:36]} 5. Ne2 {[%emt 0:03:10]} c5 {[%emt 0:00:23]} 6. e5 {[%emt 0:00:44]} Nfd7 {[%emt 0:00:02]} 7. c3 {[%emt 0:00:13]} Nc6 {[%emt 0:00:29]} 8. O-O {[%emt 0:03:44] C06: Französische Verteidigung (Tarrasch-Variante)} (8. Nf3 a5 9. O-O cxd4 10. cxd4 Nb6 11. Nc3 Bd7 12. a4 Nb4 13. Be2 Nc8 14. Be3 Na7 15. Nd2 O-O 16. f4 f5 17. exf6 Bxf6 18. Nf3 Nac6 {1-0 (47) Naiditsch,A (2704)-Bischoff,K (2519) Germany 2012}) 8... b6 {[%emt 0:01:29]} 9. f4 {[%emt 0:01:22]} cxd4 {[%emt 0:00:22]} 10. Nxd4 {[%emt 0:03:35]} Qc7 {[%emt 0:05:30]} 11. N2b3 $146 {[%emt 0:11:08]} ({Vorgänger:} 11. N2f3 Nc5 12. Nb5 Qd7 13. Bc2 Ba6 14. a4 Rd8 15. Be3 Na5 {1-0 (26) Zagorsek,D (1945)-Jurman,R (2186) Pula 2016}) 11... Nc5 {[%emt 0:01:42]} 12. Bb5 {[%emt 0:05:04]} Bd7 {[%emt 0:03:07]} 13. Bxc6 {[%emt 0:16:19]} Bxc6 {[%emt 0:00:25]} 14. f5 {[%emt 0:01:42]} exf5 {[%emt 0:07:27]} ({Black should try} 14... Bd7 $14) 15. Nxc6 {[%emt 0:04:20]} Qxc6 {[%emt 0:00:01]} 16. Nd4 {[%emt 0:00:20]} Qb7 {[%emt 0:01:56]} 17. Nxf5 {[%emt 0:02:06]} O-O-O {[%emt 0:03:04]} 18. a4 {[%emt 0:05:31]} Ne4 {[%emt 0:02:38]} 19. a5 {[%emt 0:05:14]} Bc5+ {[%emt 0:00:35]} 20. Nd4 {[%emt 0:01:28]} Rhe8 {[%emt 0:02:08]} 21. b4 {[%emt 0:08:23]} Bxd4+ $18 {[%emt 0:04:21]} (21... Nxc3 $16 {war einen Versuch wert.} 22. Qg4+ Qd7 23. Qxd7+ Rxd7 24. bxc5 bxc5) 22. Qxd4 {[%emt 0:03:30]} f6 {[%emt 0:01:14]} 23. axb6 {[%emt 0:02:17]} Qxb6 {[%emt 0:03:06]} 24. Rxa7 {[%emt 0:01:29]} Qxd4+ {[%emt 0:00:52]} 25. cxd4 {[%emt 0:00:02]} fxe5 {[%emt 0:00:00]} 26. dxe5 {[%emt 0:04:22]} d4 {[%emt 0:00:30]} 27. Re1 {[%emt 0:01:55]} Nc3 {[%emt 0:02:56]} 28. Bd2 {[%emt 0:03:06]} Rd5 {[%emt 0:02:36]} 29. e6 {[%emt 0:03:19]} Kb8 {[%emt 0:00:30]} 30. Rxg7 {[%emt 0:01:16]} Nb5 {[%emt 0:00:47]} 31. Bf4+ {[%emt 0:01:34]} Kc8 {[%emt 0:00:38]} 32. Ra1 {[%emt 0:01:30]} 1-0

[Event "EYTCC Open U12 2018"]
[Site "Bad Blankeburg"]
[Date "2018.07.17"]
[Round "8"]
[White "Schubert, Nikita"]
[Black "Aizenberg, Benny"]
[Result "0-1"]
[ECO "A58"]
[WhiteElo "1984"]
[BlackElo "1941"]
[Annotator "NA"]
[PlyCount "62"]
[EventDate "2018.07.12"]
[EventType "swiss"]
[EventCountry "GER"]
[SourceTitle "playchess.com"]
[Source "ChessBase"]
[SourceQuality "1"]
[TimeControl "40/5400+30:1800+30"]

1. d4 {[%emt 0:00:00]} Nf6 {[%emt 0:00:00]} 2. c4 {[%emt 0:00:00]} c5 {[%emt 0:00:00]} 3. d5 {[%emt 0:00:55]} b5 {[%emt 0:00:00]} 4. cxb5 {[%emt 0:03:37]} a6 {[%emt 0:00:00]} 5. bxa6 {[%emt 0:05:58]} g6 {[%emt 0:00:00]} 6. Nc3 {[%emt 0:01:40] A58: Benko/Volga Gambit: Lines with 5 bxa6} Bg7 {[%emt 0:00:57]} 7. e4 {[%emt 0:05:55]} (7. Nf3 O-O 8. g3 d6 9. Bg2 Nxa6 10. O-O Bf5 11. Nh4 Bd7 12. b3 Qb6 13. Bd2 Rfb8 14. Re1 Nc7 15. Qc2 Ra3 16. Qc1 Qa7 17. e4 Ng4 18. h3 {0-1 (38) Li,C (2732)-Shankland,S (2671) Liaocheng 2018}) 7... O-O {[%emt 0:00:05]} 8. Nf3 {[%emt 0:01:47]} Qa5 {[%emt 0:00:06]} 9. Nd2 {[%emt 0:07:13]} Bxa6 {[%emt 0:00:22]} 10. Be2 {[%emt 0:03:43]} Bxe2 {[%emt 0:00:15]} 11. Qxe2 {[%emt 0:00:44]} Qa6 {[%emt 0:00:06]} 12. O-O $146 {[%emt 0:11:38]} ({Predecessor:} 12. Nc4 e6 13. O-O exd5 14. exd5 {1-0 (41) Naumann,A (2545)-Koop,T (2418) Austria 2016}) 12... Qxe2 {[%emt 0:00:29]} 13. Nxe2 {[%emt 0:00:02]} e6 {[%emt 0:00:13]} 14. dxe6 {[%emt 0:06:53]} fxe6 {[%emt 0:00:05]} 15. Nc3 {[%emt 0:09:25]} d5 {[%emt 0:00:28]} 16. f3 {[%emt 0:02:10]} Nc6 {[%emt 0:00:08]} 17. exd5 {[%emt 0:09:27]} exd5 {[%emt 0:00:06]} 18. Nb3 {[%emt 0:01:55]} c4 {[%emt 0:00:40]} 19. Nc5 {[%emt 0:00:31]} d4 {[%emt 0:04:28]} 20. N3e4 {[%emt 0:01:48]} Nxe4 {[%emt 0:00:35]} 21. Nxe4 {[%emt 0:00:49]} d3 {[%emt 0:00:49]} 22. Nc3 {[%emt 0:12:10]} Rab8 {[%emt 0:01:12]} 23. a3 $19 {[%emt 0:09:34]} Nd4 {[%emt 0:00:22]} 24. Ra2 {[%emt 0:00:53]} Rfe8 {[%emt 0:00:16]} 25. g3 {[%emt 0:01:50]} Ne2+ {[%emt 0:02:23]} 26. Nxe2 {[%emt 0:00:38]} Rxe2 {[%emt 0:00:04]} 27. a4 {[%emt 0:01:09]} d2 {[%emt 0:00:08]} 28. Bxd2 {[%emt 0:00:33]} Rxd2 {[%emt 0:00:06]} 29. Rc1 {[%emt 0:00:46]} c3 {[%emt 0:00:10]} 30. a5 {[%emt 0:00:40]} cxb2 {[%emt 0:00:19]} 31. Rb1 {[%emt 0:00:32]} Rc8 {[%emt 0:00:11]} 0-1

[Event "EYTCC Open U12 2018"]
[Site "Bad Blankeburg"]
[Date "2018.07.17"]
[Round "8"]
[White "Laux, Dominik"]
[Black "Mizrahi, Ido"]
[Result "1/2-1/2"]
[ECO "D11"]
[WhiteElo "1943"]
[BlackElo "1914"]
[Annotator "NA"]
[PlyCount "65"]
[EventDate "2018.07.12"]
[EventType "swiss"]
[EventCountry "GER"]
[SourceTitle "playchess.com"]
[Source "ChessBase"]
[SourceQuality "1"]
[TimeControl "40/5400+30:1800+30"]

1. d4 {[%emt 0:00:00]} d5 {[%emt 0:00:00]} 2. c4 {[%emt 0:00:00]} c6 {[%emt 0:00:00]} 3. Nf3 {[%emt 0:00:08]} Nf6 {[%emt 0:00:00]} 4. e3 {[%emt 0:00:12]} Bg4 {[%emt 0:00:32]} 5. h3 {[%emt 0:01:05]} Bh5 {[%emt 0:00:08]} 6. g4 {[%emt 0:01:23]} Bg6 {[%emt 0:00:02]} 7. Ne5 {[%emt 0:00:23]} e6 {[%emt 0:02:56]} 8. Nd2 {[%emt 0:02:01]} Nbd7 {[%emt 0:03:19]} 9. Nxg6 {[%emt 0:01:20]} hxg6 {[%emt 0:00:24]} 10. Bg2 {[%emt 0:01:41]} g5 {[%emt 0:06:55]} 11. e4 {[%emt 0:06:17]} dxe4 {[%emt 0:00:38]} 12. Nxe4 {[%emt 0:00:12]} Nxe4 {[%emt 0:00:32]} 13. Bxe4 {[%emt 0:00:10]} Be7 {[%emt 0:02:56]} 14. Be3 {[%emt 0:05:29]} Qa5+ {[%emt 0:03:37]} 15. Bd2 {[%emt 0:05:03]} Qb6 $11 {[%emt 0:02:02]} 16. Bc3 {[%emt 0:01:48]} Nf6 {[%emt 0:03:14]} 17. Bg2 {[%emt 0:01:25]} O-O-O {[%emt 0:15:50]} 18. Qa4 {[%emt 0:10:42]} Kb8 {[%emt 0:12:27]} 19. b4 {[%emt 0:07:51]} Qc7 {[%emt 0:15:39]} 20. Rb1 {[%emt 0:12:19]} Qf4 {[%emt 0:07:33]} 21. Qc2 {[%emt 0:03:31]} Rh4 {[%emt 0:09:06]} 22. Qe2 {[%emt 0:06:04]} Qc7 {[%emt 0:08:23]} 23. b5 {[%emt 0:10:31]} c5 {[%emt 0:00:28]} 24. dxc5 {[%emt 0:01:59]} Bxc5 {[%emt 0:00:30]} 25. Qf3 {[%emt 0:01:23]} Bd4 {[%emt 0:01:49]} 26. Bd2 {[%emt 0:03:03]} Rhh8 {[%emt 0:01:59]} 27. Bxg5 {[%emt 0:02:47]} Rd7 {[%emt 0:00:22]} 28. Qe2 {[%emt 0:00:50]} Bc3+ {[%emt 0:00:31]} 29. Kf1 {[%emt 0:00:39]} Rhd8 {[%emt 0:00:39]} 30. Be3 {[%emt 0:02:22]} Bd4 31. Bf3 Bxe3 32. Qxe3 Qxc4+ 33. Kg2 1/2-1/2

[Event "EYTCC Open U12 2018"]
[Site "Bad Blankeburg"]
[Date "2018.07.17"]
[Round "8"]
[White "Ozkan, Taha"]
[Black "Spizharny, Mikhail"]
[Result "1/2-1/2"]
[ECO "D18"]
[WhiteElo "1891"]
[BlackElo "2015"]
[Annotator "NA"]
[PlyCount "92"]
[EventDate "2018.07.12"]
[EventType "swiss"]
[EventCountry "GER"]
[SourceTitle "playchess.com"]
[Source "ChessBase"]
[SourceQuality "1"]
[TimeControl "40/5400+30:1800+30"]

1. d4 {[%emt 0:02:40]} Nf6 {[%emt 0:00:00]} 2. c4 {[%emt 0:00:39]} c6 {[%emt 0:00:00]} 3. Nf3 {[%emt 0:00:05]} d5 {[%emt 0:00:00]} 4. Nc3 {[%emt 0:00:05]} dxc4 {[%emt 0:00:09]} 5. a4 {[%emt 0:00:06]} Bf5 {[%emt 0:00:07]} 6. e3 {[%emt 0:00:03]} Nbd7 {[%emt 0:00:41]} 7. Bxc4 {[%emt 0:00:45]} e6 {[%emt 0:00:11]} 8. O-O {[%emt 0:00:19]} Be7 {[%emt 0:01:51]} 9. Qe2 {[%emt 0:00:58]} h6 {[%emt 0:01:48]} 10. e4 {[%emt 0:01:16]} Bh7 {[%emt 0:00:45]} 11. d5 {[%emt 0:10:52]} exd5 {[%emt 0:11:41]} 12. exd5 {[%emt 0:00:15]} O-O {[%emt 0:00:52]} 13. dxc6 {[%emt 0:00:36]} bxc6 {[%emt 0:00:10]} 14. Rd1 {[%emt 0:01:14]} Bc5 {[%emt 0:10:50]} 15. Ne5 {[%emt 0:05:33]} Qc7 {[%emt 0:02:47]} 16. Nxd7 $11 {[%emt 0:01:08]} Nxd7 {[%emt 0:00:28]} 17. Bxh6 {[%emt 0:01:15]} Ne5 {[%emt 0:15:58]} 18. Bf4 {[%emt 0:02:34]} Rfe8 {[%emt 0:01:04]} 19. Re1 {[%emt 0:01:16]} Bd6 {[%emt 0:01:27]} 20. Rad1 {[%emt 0:03:02]} Nf3+ {[%emt 0:02:41]} 21. Qxf3 {[%emt 0:00:26]} Bxf4 {[%emt 0:00:31]} 22. g3 {[%emt 0:01:24]} Be5 {[%emt 0:01:49]} 23. b3 {[%emt 0:04:14]} Rab8 {[%emt 0:02:49]} 24. Ne4 {[%emt 0:03:02]} Re7 {[%emt 0:04:30]} 25. Ng5 {[%emt 0:05:23]} Bg6 {[%emt 0:02:05]} 26. Qg4 {[%emt 0:07:37]} Bf6 {[%emt 0:12:50]} 27. Rxe7 {[%emt 0:05:22]} Qxe7 {[%emt 0:01:12]} 28. Nf3 {[%emt 0:04:22]} Qe4 {[%emt 0:04:04]} 29. Qxe4 {[%emt 0:02:07]} Bxe4 {[%emt 0:00:14]} 30. Ne1 {[%emt 0:00:49]} Bd5 {[%emt 0:02:43]} 31. Bxd5 {[%emt 0:00:18]} cxd5 {[%emt 0:00:05]} 32. Rd3 {[%emt 0:07:02]} Kf8 {[%emt 0:01:53]} 33. Ng2 {[%emt 0:02:15]} d4 {[%emt 0:02:47]} 34. Nf4 {[%emt 0:00:46]} g6 {[%emt 0:01:08]} 35. Nd5 {[%emt 0:01:58]} Bg7 {[%emt 0:00:53]} 36. Nc7 {[%emt 0:05:21]} Ke7 {[%emt 0:01:48]} 37. Nb5 {[%emt 0:01:22]} a6 {[%emt 0:00:53]} 38. Nxd4 {[%emt 0:14:53]} Bxd4 {[%emt 0:00:33]} 39. Rxd4 {[%emt 0:00:06]} Rxb3 {[%emt 0:00:11]} 40. Kg2 {[%emt 0:00:53]} Ra3 {[%emt 0:01:50]} 41. g4 {[%emt 0:33:23]} Ke6 {[%emt 0:34:06]} 42. h4 {[%emt 0:01:17]} Ke5 {[%emt 0:03:26]} 43. Rb4 {[%emt 0:00:28]} f5 {[%emt 0:02:37]} 44. g5 {[%emt 0:01:58] Kf4 [%clk 0:29:20] Rb6 [%clk 0:18:58] Kg4 [%clk 0:28:21] Rxa6 [%clk 0:19:04] Kxh4 [%clk 0:28:21] Rxg6 [%clk 0:18:45]} Rxa4 {[%emt 0:00:00]} 45. Kf3 {[%emt 0:00:00] Rg4 [%clk 0:25:55] Rg7 [%clk 0:14:24] Rxg5 [%clk 0:24:10] Rf7 [%clk 0:14:11] Kh5 [%clk 0:22:17] Kf4 [%clk 0:14:22] Rg2 [%clk 0:20:32] f3 [%clk 0:13:07] Kg6 [%clk 0:19:54] Rxf5 [%clk 0:13:09]} Ra2 {[%emt 0:00:00] Re5 [%clk 0:13:16]} 46. Ra4 {[%emt 0:00:00] Re4 [%clk 0:13:35]} Ra3+ {[%emt 0:00:00] Rb4 [%clk 0:13:34] Kf6 [%clk 0:18:45] Kg4 [%clk 0:13:19] Ra1 [%clk 0:18:33] Rb6+ [%clk 0:13:33] Kf7 [%clk 0:18:41] f4 [%clk 0:13:41] Ra5 [%clk 0:18:33] Rb4 [%clk 0:12:36] Kf6 [%clk 0:18:28] Rb8 [%clk 0:12:29] Kg6 [%clk 0:18:18] Rg8+ [%clk 0:12:26] Kf7 [%clk 0:18:20] Rb8 [%clk 0:12:20] Kf6 [%clk 0:18:39] Rf8+ [%clk 0:12:15] Kg7 [%clk 0:18:50] Rc8 [%clk 0:11:59] Kf6 [%clk 0:19:04] Rc6+ [%clk 0:11:50] Kf7 [%clk 0:19:16] Kf3 [%clk 0:11:45] Ra4 [%clk 0:19:02] Rc5 [%clk 0:10:16] Kf6 [%clk 0:18:59] Kg4 [%clk 0:09:32] Rb4 [%clk 0:18:48] Rc6+ [%clk 0:09:37] Kf7 [%clk 0:18:59] Kg5 [%clk 0:09:21] Rb1 [%clk 0:17:12] Ra6 [%clk 0:06:28] Rc1 [%clk 0:16:29] Ra7+ [%clk 0:05:53] Kf8 [%clk 0:16:14] f5 [%clk 0:06:11] Rc6 [%clk 0:16:14] Ra8+ [%clk 0:05:56] Kf7 [%clk 0:16:11]} 1/2-1/2

[Event "EYTCC Open U12 2018"]
[Site "Bad Blankeburg"]
[Date "2018.07.17"]
[Round "8"]
[White "Kabadayi, Suleyman Arda"]
[Black "Klachkou, Platon"]
[Result "0-1"]
[ECO "B07"]
[WhiteElo "1650"]
[BlackElo "1576"]
[Annotator "NA"]
[PlyCount "184"]
[EventDate "2018.07.12"]
[EventType "swiss"]
[EventCountry "GER"]
[SourceTitle "playchess.com"]
[Source "ChessBase"]
[SourceQuality "1"]
[TimeControl "40/5400+30:1800+30"]

1. e4 {[%emt 0:02:53]} d6 {[%emt 0:00:00]} 2. d4 {[%emt 0:00:22]} Nf6 {[%emt 0:00:00]} 3. Nc3 {[%emt 0:00:06]} g6 {[%emt 0:00:00]} 4. g3 {[%emt 0:00:38]} Bg7 {[%emt 0:00:11]} 5. Bg2 {[%emt 0:00:42]} O-O {[%emt 0:00:09]} 6. Nge2 {[%emt 0:00:38]} Nbd7 {[%emt 0:00:13]} 7. O-O {[%emt 0:01:59]} e5 {[%emt 0:01:30]} 8. h3 {[%emt 0:01:10]} a6 {[%emt 0:01:28]} 9. a4 {[%emt 0:03:14]} Rb8 {[%emt 0:03:26]} 10. Qd3 {[%emt 0:12:36]} Re8 {[%emt 0:11:10]} 11. Be3 {[%emt 0:03:55]} Qe7 {[%emt 0:09:32]} 12. f4 {[%emt 0:09:20]} h6 {[%emt 0:04:16]} 13. Rae1 {[%emt 0:06:18]} c6 {[%emt 0:05:27]} 14. g4 {[%emt 0:07:32]} Nh7 {[%emt 0:03:46]} 15. Ng3 {[%emt 0:06:04]} b5 {[%emt 0:04:40]} 16. b3 {[%emt 0:08:07]} b4 {[%emt 0:08:07]} 17. Nce2 {[%emt 0:00:56]} c5 {[%emt 0:00:58]} 18. d5 {[%emt 0:01:47]} Rf8 {[%emt 0:05:41]} 19. Qd2 {[%emt 0:02:48]} c4 {[%emt 0:18:29]} 20. fxe5 {[%emt 0:03:11]} Nxe5 {[%emt 0:02:24]} 21. Bxh6 {[%emt 0:03:27]} Bxh6 {[%emt 0:01:30]} 22. Qxh6 {[%emt 0:00:19]} cxb3 {[%emt 0:00:04]} 23. cxb3 {[%emt 0:00:26]} Qa7+ {[%emt 0:00:47]} 24. Kh2 {[%emt 0:03:33]} Bxg4 {[%emt 0:03:08]} 25. Qh4 {[%emt 0:04:30]} Bxe2 {[%emt 0:01:34]} 26. Nxe2 {[%emt 0:00:26]} Rbe8 {[%emt 0:01:24]} 27. Qg3 {[%emt 0:01:49]} Rc8 {[%emt 0:02:40]} 28. Rc1 {[%emt 0:00:26]} Qe7 {[%emt 0:01:21]} 29. Nd4 {[%emt 0:01:27]} Qg5 {[%emt 0:01:46]} 30. Nc6 {[%emt 0:01:38]} Rce8 {[%emt 0:02:17]} 31. Qxg5 {[%emt 0:02:17]} Nxg5 {[%emt 0:00:32]} 32. h4 {[%emt 0:00:37]} Nh7 {[%emt 0:00:48]} 33. Nxb4 {[%emt 0:01:29]} g5 {[%emt 0:00:39]} 34. hxg5 {[%emt 0:00:58]} Nxg5 {[%emt 0:00:09]} 35. Nxa6 {[%emt 0:01:04]} Ng4+ {[%emt 0:01:15]} 36. Kg3 {[%emt 0:00:58]} Ne3 {[%emt 0:00:33]} 37. Rfe1 {[%emt 0:00:31]} Nxg2 {[%emt 0:01:17]} 38. Kxg2 {[%emt 0:00:04]} Kg7 {[%emt 0:00:09]} 39. Rc3 {[%emt 0:01:53]} Re5 {[%emt 0:02:18]} 40. b4 {[%emt 0:05:16]} Nxe4 {[%emt 0:01:01]} 41. Rce3 {[%emt 0:30:23]} Rg5+ {[%emt 0:30:20]} 42. Kf3 {[%emt 0:01:25]} Nd2+ {[%emt 0:01:20]} 43. Kf4 {[%emt 0:01:20]} Rxd5 {[%emt 0:00:40]} 44. Rg3+ {[%emt 0:00:00]} Kf6 {[%emt 0:00:00]} 45. Nc7 {[%emt 0:00:00]} Rf5+ {[%emt 0:00:00]} 46. Kg4 {[%emt 0:00:00]} Rh8 {[%emt 0:00:00]} 47. a5 {[%emt 0:00:00]} Rg5+ {[%emt 0:00:00]} 48. Kf4 {[%emt 0:00:00]} Rh4+ {[%emt 0:00:00]} 49. Ke3 {[%emt 0:00:00]} Rxg3+ {[%emt 0:00:00]} 50. Kxd2 {[%emt 0:00:00]} Rd4+ {[%emt 0:00:00]} 51. Ke2 {[%emt 0:00:00]} Kf5 {[%emt 0:00:00]} 52. b5 {[%emt 0:00:00]} Ra3 {[%emt 0:00:00]} 53. a6 {[%emt 0:00:00]} Ra2+ {[%emt 0:00:00]} 54. Kf3 {[%emt 0:00:00]} Rf4+ {[%emt 0:00:00]} 55. Kg3 {[%emt 0:00:00]} Rg4+ {[%emt 0:00:00]} 56. Kf3 {[%emt 0:00:00]} Rag2 {[%emt 0:00:00]} 57. Ke3 {[%emt 0:00:00]} R4g3+ {[%emt 0:00:00]} 58. Kd4 {[%emt 0:00:00]} Rd2+ {[%emt 0:00:00]} 59. Kc4 {[%emt 0:00:00]} Rc2+ {[%emt 0:00:00]} 60. Kb4 {[%emt 0:00:00]} Rxc7 {[%emt 0:00:00]} 61. b6 {[%emt 0:00:00]} Rg4+ {[%emt 0:00:00]} 62. Kb3 {[%emt 0:00:00]} Rc6 {[%emt 0:00:00]} 63. b7 {[%emt 0:01:23]} Rb6+ {[%emt 0:00:00]} 64. Kc3 {[%emt 0:00:19]} Ra4 {[%emt 0:00:00]} 65. Re8 {[%emt 0:01:54]} Raxa6 {[%emt 0:00:00]} 66. b8=Q {[%emt 0:00:26]} Rxb8 {[%emt 0:00:00]} 67. Rxb8 {[%emt 0:00:07]} Ke5 {[%emt 0:00:00]} 68. Kd3 {[%emt 0:00:27]} Ra3+ {[%emt 0:00:00]} 69. Kd2 {[%emt 0:00:20]} d5 {[%emt 0:00:00]} 70. Rf8 {[%emt 0:00:25]} f5 {[%emt 0:00:00]} 71. Re8+ {[%emt 0:00:21]} Kd4 {[%emt 0:00:00]} 72. Rf8 {[%emt 0:00:23]} Ra2+ {[%emt 0:00:00]} 73. Ke1 {[%emt 0:00:27]} f4 {[%emt 0:00:00]} 74. Kf1 {[%emt 0:00:20]} Ke3 {[%emt 0:00:00]} 75. Re8+ {[%emt 0:00:19]} Kf3 {[%emt 0:00:00]} 76. Kg1 {[%emt 0:00:03]} d4 {[%emt 0:00:00]} 77. Rd8 {[%emt 0:00:14]} Rd2 {[%emt 0:00:00]} 78. Rh8 {[%emt 0:00:45]} Rd1+ {[%emt 0:00:03]} 79. Kh2 {[%emt 0:00:06]} Kf2 {[%emt 0:00:09]} 80. Rh4 {[%emt 0:00:28]} Ke3 {[%emt 0:00:20]} 81. Rh8 {[%emt 0:00:28]} d3 {[%emt 0:00:14]} 82. Re8+ {[%emt 0:00:22]} Kf2 {[%emt 0:00:15]} 83. Rh8 {[%emt 0:00:35]} d2 {[%emt 0:00:13]} 84. Rd8 {[%emt 0:00:17]} f3 {[%emt 0:00:10]} 85. Rd3 {[%emt 0:00:54]} Ke2 {[%emt 0:00:12]} 86. Rd8 {[%emt 0:00:17]} f2 {[%emt 0:00:03]} 87. Re8+ {[%emt 0:00:06]} Kd3 {[%emt 0:00:09]} 88. Rd8+ {[%emt 0:00:09]} Ke4 {[%emt 0:00:02]} 89. Re8+ {[%emt 0:00:40]} Kd5 {[%emt 0:00:01]} 90. Rd8+ {[%emt 0:00:31]} Kc6 {[%emt 0:00:12]} 91. Rf8 {[%emt 0:00:23]} f1=Q {[%emt 0:00:12]} 92. Rf3 {[%emt 0:00:33]} Qe2+ {[%emt 0:00:13]} 0-1

[Event "EYTCC Open U12 2018"]
[Site "Bad Blankeburg"]
[Date "2018.07.18"]
[Round "9"]
[White "Wagner, Leopold Franziskus"]
[Black "Maurizzi, Marc Andria"]
[Result "0-1"]
[ECO "A05"]
[WhiteElo "2108"]
[BlackElo "2155"]
[Annotator "NA"]
[PlyCount "102"]
[EventDate "2018.07.12"]
[EventType "swiss"]
[EventCountry "GER"]
[SourceTitle "playchess.com"]
[Source "ChessBase"]
[SourceQuality "1"]
[WhiteTeam "Germany"]
[BlackTeam "France"]
[WhiteTeamCountry "GER"]
[BlackTeamCountry "FRA"]
[TimeControl "40/5400+30:1800+30"]

1. Nf3 {[%emt 0:00:00]} Nf6 {[%emt 0:00:00]} 2. c4 {[%emt 0:00:21]} b6 {[%emt 0:00:20]} 3. Nc3 {[%emt 0:01:35]} Bb7 {[%emt 0:00:20]} 4. d4 {[%emt 0:03:14]} e6 {[%emt 0:00:11]} 5. Qc2 {[%emt 0:01:09]} c5 {[%emt 0:11:01]} 6. e4 {[%emt 0:05:14]} cxd4 {[%emt 0:00:23] E12: Queen's Indian: Unusual White 4th moves, 4 a3, 4 Nc3 Bb7 5 a3 and 4 Nc3 Bb7} 7. Nxd4 {[%emt 0:00:13]} d6 {[%emt 0:34:24]} (7... Bb4 8. f3 O-O 9. Bg5 Qc7 10. a3 Be7 11. Rd1 a6 12. Be2 d6 13. O-O Nbd7 14. Be3 Rac8 15. Rc1 Rfe8 {0-1 (46) Jakovenko,D (2713)-Vallejo Pons,F (2706) Khanty-Mansiysk 2013}) 8. Be2 {[%emt 0:04:24]} Be7 {[%emt 0:01:27]} 9. Be3 {[%emt 0:01:21]} O-O {[%emt 0:09:22]} 10. O-O {[%emt 0:00:35]} Nbd7 {[%emt 0:00:18]} 11. f4 {[%emt 0:01:43]} a6 {[%emt 0:02:12]} 12. Bf3 {[%emt 0:00:52]} Qc7 {[%emt 0:00:49]} 13. Rac1 {[%emt 0:00:37]} Rac8 {[%emt 0:01:17]} 14. b3 {[%emt 0:00:31]} Rfe8 $146 {[%emt 0:10:00]} ({Predecessor:} 14... Qb8 15. Qb1 Rfe8 16. f5 Bd8 17. fxe6 fxe6 {0-1 (29) Karayaylali,P (1593)-Yaremko,N (2324) Acri 2006}) 15. Rfd1 {[%emt 0:03:36]} Bf8 {[%emt 0:00:49]} 16. Qb1 {[%emt 0:04:25]} Qb8 {[%emt 0:02:18]} 17. Nde2 {[%emt 0:05:00]} Qa8 {[%emt 0:01:31]} 18. g4 {[%emt 0:02:01]} d5 {[%emt 0:05:25]} 19. Ng3 {[%emt 0:16:31]} Nc5 {[%emt 0:04:56]} 20. e5 {[%emt 0:05:17]} d4 {[%emt 0:00:17]} 21. Bxb7 {[%emt 0:00:07]} Qxb7 {[%emt 0:00:11]} 22. Bxd4 {[%emt 0:00:42]} Nxg4 {[%emt 0:00:11]} 23. Nce4 {[%emt 0:01:00]} Red8 {[%emt 0:02:09]} 24. Bxc5 {[%emt 0:03:45]} bxc5 {[%emt 0:02:24]} 25. Ng5 {[%emt 0:04:27]} g6 {[%emt 0:01:22]} 26. Qe4 {[%emt 0:00:48]} Qxe4 {[%emt 0:04:01]} 27. N3xe4 {[%emt 0:01:00]} h6 {[%emt 0:01:18]} 28. Nf3 {[%emt 0:01:01]} Ne3 {[%emt 0:00:14]} 29. Rxd8 {[%emt 0:00:59]} Rxd8 {[%emt 0:00:06]} 30. Kf2 {[%emt 0:00:22]} Nf5 {[%emt 0:00:27]} 31. Ke2 {[%emt 0:01:13]} Be7 {[%emt 0:00:53]} 32. Rd1 {[%emt 0:01:36]} Rxd1 {[%emt 0:00:17]} 33. Kxd1 {[%emt 0:00:06]} Ne3+ {[%emt 0:00:05]} 34. Kd2 {[%emt 0:02:46]} Ng2 {[%emt 0:00:05]} 35. Ne1 {[%emt 0:01:04]} Nxf4 {[%emt 0:00:16]} 36. Ke3 {[%emt 0:00:38]} g5 {[%emt 0:00:47]} 37. Nd3 {[%emt 0:02:58]} Nxd3 {[%emt 0:00:09]} 38. Kxd3 {[%emt 0:00:03]} Kf8 {[%emt 0:04:19]} 39. b4 {[%emt 0:01:34]} cxb4 {[%emt 0:00:11]} 40. c5 {[%emt 0:00:07]} Ke8 {[%emt 0:00:17]} 41. Kc4 {[%emt 0:46:29]} Kd7 {[%emt 0:31:03]} 42. Kxb4 {[%emt 0:02:00]} Kc6 {[%emt 0:00:18]} 43. Kc4 {[%emt 0:00:05]} h5 {[%emt 0:01:48]} 44. Kd4 {[%emt 0:01:22]} g4 {[%emt 0:00:00]} 45. Nd6 {[%emt 0:00:00]} f6 {[%emt 0:00:00]} 46. exf6 {[%emt 0:00:00]} Bxf6+ {[%emt 0:00:00]} (46... Bxd6 $142 47. cxd6 Kxd6) 47. Kc4 {[%emt 0:00:00]} Be5 {[%emt 0:00:00]} 48. Nc8 $19 {[%emt 0:00:00]} h4 {[%emt 0:00:00]} 49. Ne7+ {[%emt 0:00:00]} Kc7 {[%emt 0:00:00]} 50. Ng6 {[%emt 0:00:00]} g3 {[%emt 0:00:00]} 51. hxg3 {[%emt 0:00:00]} h3 {[%emt 0:00:00] Kd4} 0-1